bitfinex/quotes_SOLUSD_20250901
["timestamp","ask_amount","ask_price","bid_price","bid_amount"]
[1756734220318,39.6,200.11,200.05,7.39923126]
[1756734220496,6.72923126,200.08,200.05,0.67]
[1756734220694,26.0,200.03,200.01,0.12]
[1756734221020,39.64,200.02,200.01,0.12]
[1756734221613,46.36923126,200.02,200.01,0.12]
[1756734221812,46.51139283,200.02,200.01,0.12]
[1756734222027,60.82698684,200.02,200.01,0.12]
[1756734222313,20.46698684,200.02,200.01,0.12]
[1756734222523,60.10698684,200.02,200.01,0.12]
[1756734222723,30.99898729,200.05,200.01,0.12]
[1756734222895,26.0,200.02,200.01,0.12]
[1756734223215,77.3487313,200.02,200.01,0.12]
[1756734224101,91.80648688,200.02,200.01,0.12]
[1756734224805,52.18648688,200.02,200.01,0.12]
[1756734225002,91.10648688,200.02,200.01,0.12]
[1756734225391,44.73725562,200.02,200.01,0.12]
[1756734225597,91.10648688,200.02,200.01,0.12]
[1756734225797,91.82648688,200.02,200.01,0.12]
[1756734226717,52.18648688,200.02,200.01,0.12]
[1756734227018,91.14648688,200.02,200.01,0.12]
[1756734227395,2.004059,200.04,200.01,0.12]
[1756734227611,6.72923126,200.02,200.01,0.12]
[1756734227823,46.55139283,200.02,200.01,0.12]
[1756734228020,83.62401838,200.02,200.01,0.12]
[1756734228922,70.02842437,200.02,200.01,0.12]
[1756734229222,26.0,200.02,200.01,0.79]
[1756734229799,39.7,200.02,200.01,9.99601281]
[1756734230124,43.9062628,200.02,200.01,0.12]
[1756734230332,57.64401838,200.02,200.01,0.12]
[1756734230624,58.36401838,200.02,200.01,0.12]
[1756734231107,18.66401838,200.02,200.01,0.12]
[1756734231313,63.36351842,200.02,200.01,0.12]
[1756734231713,62.64351842,200.02,200.01,0.12]
[1756734231911,4.2062628,200.02,200.01,0.12]
[1756734232222,4.2062628,200.05,200.01,0.79]
[1756734232420,39.76,200.04,200.01,0.79]
[1756734232630,2.003556,200.08,200.02,0.67]
[1756734232833,65.94,200.07,200.03,4.2062628]
[1756734233130,39.94,200.06,200.04,0.67]
[1756734233426,4.2062628,200.09,200.05,0.67]
[1756734233628,39.92,200.08,200.05,0.67]
[1756734233828,39.92,200.08,200.06,0.67]
[1756734234131,0.03,200.08,200.07,0.67]
[1756734234312,39.97,200.08,200.07,0.67]
[1756734236409,0.03,200.08,200.07,0.67]
[1756734236621,39.93,200.08,200.07,0.67]
[1756734236824,39.93,200.08,200.04,6.72355563]
[1756734237132,6.72355563,200.07,200.03,0.67]
[1756734237305,39.88,200.06,200.03,0.67]
[1756734237506,39.88,200.06,200.02,6.72355563]
[1756734237507,39.88,200.06,200.04,0.67]
[1756734238033,39.88,200.06,200.05,0.67]
[1756734238636,39.88,200.06,200.02,7.39355563]
[1756734238818,39.88,200.06,200.03,0.67]
[1756734239019,39.88,200.06,200.04,0.67]
[1756734239528,39.88,200.06,200.05,0.67]
[1756734239837,39.84,200.06,200.05,0.67]
[1756734240636,39.84,200.06,200.02,7.39355563]
[1756734240807,46.56355563,200.06,200.02,0.67]
[1756734241008,39.84,200.06,200.02,0.67]
[1756734241229,46.56355563,200.06,200.02,0.67]
[1756734241910,6.72355563,200.04,200.01,0.12]
[1756734242111,39.82,200.03,200.01,0.12]
[1756734244526,46.54355563,200.03,200.01,0.12]
[1756734245036,39.78,200.02,200.01,0.12]
[1756734245227,47.17355563,200.02,200.01,0.12]
[1756734245422,46.50355563,200.02,200.01,0.12]
[1756734245831,32.72355563,200.04,200.01,0.81]
[1756734246029,39.78,200.02,200.01,0.81]
[1756734246739,26.0,200.04,200.01,0.81]
[1756734246939,39.76,200.03,200.01,0.81]
[1756734247530,6.72355563,200.02,200.01,0.12]
[1756734247725,46.48355563,200.03,200.01,0.12]
[1756734247919,39.76,200.03,200.01,0.12]
[1756734248950,46.48355563,200.03,200.01,0.12]
[1756734250347,51.48286572,200.03,200.01,0.12]
[1756734250643,46.48355563,200.03,200.01,0.12]
[1756734250826,26.0,200.04,200.02,0.69]
[1756734251246,171.62190704,200.07,200.03,0.69]
[1756734251438,39.7,200.06,200.03,0.69]
[1756734251947,46.42355563,200.06,200.01,12.53323582]
[1756734252141,46.42355563,200.06,200.01,11.84323582]
[1756734252440,26.0,200.07,200.03,6.72355563]
[1756734252642,0.03,200.08,200.06,6.72355563]
[1756734252843,0.03,200.08,200.04,0.69]
[1756734252844,39.68,200.07,200.05,6.72355563]
[1756734253033,39.68,200.07,200.03,6.72355563]
[1756734253338,39.68,200.07,200.03,0.69]
[1756734253520,39.68,200.07,200.03,6.72355563]
[1756734253724,39.68,200.07,200.04,0.69]
[1756734253917,39.68,200.07,200.02,0.12]
[1756734254142,40.35,200.07,200.03,4.20312576]
[1756734254450,39.68,200.07,200.03,4.89312576]
[1756734254630,39.68,200.07,200.04,0.69]
[1756734254948,39.68,200.06,200.05,4.89312576]
[1756734255145,26.03,200.08,200.05,4.89312576]
[1756734255347,39.68,200.06,200.05,4.89312576]
[1756734256448,0.03,200.08,200.05,4.89312576]
[1756734256652,0.03,200.08,200.07,4.20312576]
[1756734256831,39.71,200.08,200.07,4.89312576]
[1756734257346,39.71,200.08,200.07,0.69]
[1756734257521,39.71,200.08,200.07,4.89312576]
[1756734258352,39.71,200.08,200.07,4.20312576]
[1756734258855,39.71,200.08,200.05,4.20312576]
[1756734259026,40.38,200.08,200.04,9.20205326]
[1756734259230,0.67,200.07,200.03,9.20234196]
[1756734259524,0.67,200.07,200.04,4.20312576]
[1756734260449,0.67,200.07,200.02,0.12]
[1756734260450,30.20312576,200.05,200.02,0.12]
[1756734260664,43.88312576,200.04,200.02,0.12]
[1756734260949,4.20312576,200.03,200.02,0.12]
[1756734261156,4.87312576,200.03,200.02,0.12]
[1756734262164,7.39882487,200.03,200.02,0.12]
[1756734262653,12.39807498,200.03,200.02,0.12]
[1756734263754,26.13583056,200.03,200.02,0.12]
[1756734266270,26.13583056,200.03,200.01,0.12]
[1756734266271,13.73775558,200.02,200.01,0.12]
[1756734266487,60.10658045,200.02,200.01,0.12]
[1756734266766,60.77658045,200.02,200.01,0.12]
[1756734267331,60.73154247,200.02,200.01,0.12]
[1756734267533,26.09104251,200.02,200.01,0.12]
[1756734267735,65.71104251,200.02,200.01,0.12]
[1756734269071,103.20729287,200.02,199.84,26.0]
[1756734269364,6.72882487,199.92,199.9,0.69]
[1756734269670,13.73775558,200.0,199.9,0.69]
[1756734269833,26.0,199.94,199.9,7.41882487]
[1756734270029,39.62,199.93,199.91,0.69]
[1756734270451,6.72882487,199.92,199.89,0.69]
[1756734270663,39.64,199.91,199.89,0.69]
[1756734270858,39.64,199.91,199.9,0.69]
[1756734271361,39.64,199.91,199.83,17.51488764]
[1756734271546,39.64,199.91,199.9,0.69]
[1756734272055,39.62,199.91,199.9,12.42132612]
[1756734272358,39.62,199.91,199.9,0.69]
[1756734272554,39.62,199.91,199.9,5.69243746]
[1756734272853,39.62,199.91,199.9,5.69250125]
[1756734273055,26.0,199.93,199.9,12.42132612]
[1756734273258,39.62,199.92,199.91,7.41882487]
[1756734273577,39.62,199.92,199.91,0.69]
[1756734273748,39.6,199.92,199.91,12.42098618]
[1756734274451,39.6,199.92,199.91,5.69216131]
[1756734274833,133.9,199.96,199.91,12.42098618]
[1756734275039,133.9,200.01,199.95,6.72882487]
[1756734275252,39.62,200.0,199.96,6.72882487]
[1756734275562,46.34882487,200.0,199.95,7.41882487]
[1756734275762,46.34882487,200.0,199.96,0.69]
[1756734276561,39.62,200.0,199.96,0.69]
[1756734278759,39.62,200.0,199.97,7.41882487]
[1756734279165,26.0,200.01,199.97,6.72882487]
[1756734279356,39.6,200.0,199.99,6.72882487]
[1756734279554,13.59559401,200.05,199.99,7.41882487]
[1756734279867,39.58,200.04,200.0,6.72882487]
[1756734280072,39.58,200.04,200.0,12.41875241]
[1756734280371,39.58,200.03,199.99,11.7290308]
[1756734280538,39.58,200.03,199.99,0.69]
[1756734280739,39.58,200.03,199.98,6.72882487]
[1756734280939,0.69,200.02,199.98,6.72882487]
[1756734281137,39.58,200.01,199.97,12.41957438]
[1756734281358,39.58,200.01,199.98,0.69]
[1756734281563,0.69,200.04,199.98,0.69]
[1756734281564,6.72882487,200.03,199.98,7.41882487]
[1756734281873,39.56,200.02,199.99,12.41898399]
[1756734282192,39.56,200.02,200.0,4.89418482]
[1756734282363,39.56,200.02,200.01,0.69]
[1756734282568,26.0,200.05,200.01,0.69]
[1756734282569,0.03,200.06,200.01,4.89418482]
[1756734282767,39.56,200.05,200.02,4.89418482]
[1756734282966,39.56,200.05,200.02,0.69]
[1756734283268,39.56,200.05,200.02,4.89418482]
[1756734283654,39.56,200.05,200.02,0.69]
[1756734284055,39.56,200.05,200.02,5.68941363]
[1756734284569,39.56,200.05,200.02,4.99941363]
[1756734284776,39.56,200.05,200.03,0.69]
[1756734285077,39.56,200.04,200.02,9.20359845]
[1756734285267,39.56,200.04,200.02,5.68941363]
[1756734285471,39.56,200.04,200.02,4.89418482]
[1756734286765,39.56,200.04,200.02,0.69]
[1756734286965,39.56,200.04,200.01,4.20418482]
[1756734287178,26.0,200.01,199.94,5.00130396]
[1756734287361,39.56,200.0,199.96,4.20418482]
[1756734287678,39.56,200.0,199.97,0.69]
[1756734288263,39.56,200.0,199.98,4.89418482]
[1756734288588,0.69,199.99,199.93,0.69]
[1756734288778,4.89418482,199.99,199.93,0.69]
[1756734289080,4.20418482,199.98,199.93,4.89418482]
[1756734289261,39.56,199.97,199.93,4.89418482]
[1756734289462,39.56,199.97,199.94,0.69]
[1756734289664,39.56,199.97,199.95,4.89418482]
[1756734289865,39.56,199.97,199.95,4.20418482]
[1756734290067,39.56,199.97,199.91,17.50787854]
[1756734290282,39.56,199.97,199.95,0.69]
[1756734290494,44.45418482,199.97,199.92,5.69194651]
[1756734290658,0.69,199.96,199.92,4.20418482]
[1756734291597,4.89418482,199.96,199.91,9.20637927]
[1756734291768,0.69,199.95,199.91,5.00219445]
[1756734292088,39.56,199.94,199.91,5.69219445]
[1756734292262,39.56,199.94,199.91,0.69]
[1756734292707,39.56,199.94,199.9,9.32662705]
[1756734293057,39.56,199.94,199.9,4.32418482]
[1756734293565,39.56,199.94,199.9,9.3266512]
[1756734293864,39.56,199.94,199.93,0.12]
[1756734294679,40.25,199.94,199.93,0.12]
[1756734294875,45.252726,199.94,199.93,0.12]
[1756734295186,49.45691082,199.94,199.93,0.12]
[1756734295985,44.562726,199.94,199.93,0.12]
[1756734296888,5.002726,199.94,199.93,0.12]
[1756734297072,39.56,199.94,199.93,10.01593543]
[1756734297258,39.56,199.94,199.93,0.12]
[1756734297675,5.692727,199.96,199.93,5.81175061]
[1756734297884,5.692727,199.96,199.94,4.20418482]
[1756734298182,39.56,199.95,199.94,4.20418482]
[1756734298571,39.56,199.95,199.93,5.12151087]
[1756734298772,39.56,199.95,199.93,0.12]
[1756734299886,39.56,199.95,199.93,5.81172448]
[1756734300086,39.56,199.95,199.94,0.69]
[1756734300385,44.45418482,199.95,199.93,0.12]
[1756734300589,39.56,199.95,199.93,0.12]
[1756734300768,39.56,199.95,199.93,5.01418482]
[1756734300769,39.56,199.94,199.93,5.01418482]
[1756734300972,39.56,199.94,199.93,0.81]
[1756734301169,39.56,199.94,199.93,0.12]
[1756734301364,44.45418482,199.94,199.93,0.12]
[1756734301565,39.56,199.94,199.93,0.12]
[1756734301766,26.0,199.97,199.93,0.81]
[1756734301962,39.56,199.96,199.93,0.81]
[1756734302178,40.25,199.96,199.93,0.12]
[1756734302384,0.69,199.95,199.93,0.12]
[1756734302693,39.56,199.96,199.93,0.12]
[1756734302881,39.56,199.96,199.93,0.81]
[1756734303083,12.507799,199.98,199.95,4.20418482]
[1756734303388,12.507799,199.98,199.94,4.20418482]
[1756734303570,13.197799,199.98,199.94,4.20418482]
[1756734303766,0.69,199.98,199.93,10.01588749]
[1756734304371,43.76418482,199.99,199.93,0.12]
[1756734304372,4.89418482,199.97,199.93,0.12]
[1756734304584,26.0,199.94,199.93,0.12]
[1756734304991,26.71,199.94,199.93,0.12]
[1756734305290,30.91418482,199.94,199.93,0.12]
[1756734305598,31.05634639,199.94,199.93,0.12]
[1756734307082,75.63784684,199.94,199.93,0.12]
[1756734307287,26.0,199.94,199.93,0.12]
[1756734307482,39.58,199.94,199.93,0.12]
[1756734308181,84.2319404,199.94,199.93,0.12]
[1756734308580,89.1361254,199.94,199.93,0.12]
[1756734308895,94.13762585,199.94,199.93,0.12]
[1756734309995,31.04634657,199.94,199.93,0.12]
[1756734310301,75.61784684,199.94,199.93,0.12]
[1756734310476,93.41762585,199.94,199.93,0.12]
[1756734311200,67.41762585,199.94,199.93,0.12]
[1756734313975,39.59559401,199.91,199.9,0.12]
[1756734314201,87.70612522,199.91,199.9,0.12]
[1756734314377,26.0,199.87,199.78,0.7]
[1756734314578,4.20418482,199.82,199.78,0.7]
[1756734314890,39.56,199.81,199.78,0.7]
[1756734315074,39.56,199.81,199.74,5.00650436]
[1756734315275,43.76418482,199.81,199.78,0.7]
[1756734315677,39.56,199.81,199.78,0.7]
[1756734315880,39.56,199.8,199.79,0.7]
[1756734317005,4.34634639,199.83,199.79,0.7]
[1756734317208,4.20418482,199.81,199.76,0.7]
[1756734317372,39.58,199.8,199.76,0.7]
[1756734318221,39.58,199.8,199.73,5.0067381]
[1756734318420,39.58,199.8,199.74,0.7]
[1756734318728,4.20418482,199.79,199.74,0.7]
[1756734319001,39.58,199.78,199.72,4.20418482]
[1756734319200,4.20418482,199.77,199.72,4.20418482]
[1756734319375,39.58,199.76,199.73,4.90418482]
[1756734319575,39.58,199.76,199.74,4.90418482]
[1756734319775,5.713701,199.86,199.75,4.90418482]
[1756734319999,39.58,199.83,199.78,4.20418482]
[1756734320201,43.78418482,199.83,199.78,0.7]
[1756734320406,31.006225,199.84,199.79,0.7]
[1756734320587,44.49418482,199.83,199.77,4.20418482]
[1756734320917,31.006225,199.84,199.78,0.7]
[1756734321118,39.58,199.83,199.81,4.20418482]
[1756734321408,39.58,199.82,199.79,9.90944033]
[1756734321702,39.58,199.81,199.79,9.90944033]
[1756734322001,19.95592582,199.85,199.8,4.20418482]
[1756734322205,44.49418482,199.84,199.79,9.20944033]
[1756734322421,44.49418482,199.84,199.75,5.70625782]
[1756734322422,4.20418482,199.82,199.75,5.70625782]
[1756734322712,69.78418482,199.81,199.76,4.20418482]
[1756734322883,70.49418482,199.81,199.76,4.90418482]
[1756734323083,26.0,199.82,199.77,9.90994144]
[1756734323299,39.58,199.81,199.79,4.20418482]
[1756734323500,41.751741,199.85,199.79,4.20418482]
[1756734323704,39.58,199.84,199.81,4.20418482]
[1756734323883,39.58,199.84,199.8,4.20418482]
[1756734324084,39.58,199.84,199.8,4.90418482]
[1756734324489,4.20418482,199.82,199.77,4.20418482]
[1756734324819,40.29,199.81,199.77,4.20418482]
[1756734325028,40.29,199.81,199.73,5.70666715]
[1756734325029,4.91418482,199.8,199.73,5.70666715]
[1756734325219,4.91418482,199.8,199.74,4.20418482]
[1756734325600,0.71,199.8,199.75,4.20418482]
[1756734325822,0.71,199.79,199.68,17.65580161]
[1756734326146,26.0,199.76,199.69,0.7]
[1756734326287,39.6,199.75,199.7,4.20418482]
[1756734326484,26.0,199.76,199.71,4.20418482]
[1756734326723,26.0,199.78,199.74,4.20418482]
[1756734326907,39.6,199.77,199.72,0.7]
[1756734327088,39.6,199.77,199.73,4.20418482]
[1756734327502,26.0,199.78,199.75,4.20418482]
[1756734327702,0.14216157,199.8,199.77,4.20418482]
[1756734327927,39.6,199.79,199.75,4.20418482]
[1756734328334,15.044759,199.81,199.76,4.90418482]
[1756734328638,39.6,199.8,199.78,4.20418482]
[1756734328815,39.6,199.8,199.7,4.20418482]
[1756734329018,39.6,199.8,199.78,4.20418482]
[1756734329220,40.97418482,199.85,199.79,4.90418482]
[1756734329425,39.6,199.84,199.8,4.20418482]
[1756734329622,15.042495,199.83,199.8,4.20418482]
[1756734329829,15.042495,199.83,199.79,0.7]
[1756734330007,15.042495,199.83,199.79,4.90418482]
[1756734330202,15.042495,199.83,199.79,4.20418482]
[1756734330627,39.6,199.82,199.8,4.90418482]
[1756734330827,36.06,199.85,199.81,4.90418482]
[1756734331031,15.040233,199.86,199.84,4.20418482]
[1756734331221,15.040233,199.86,199.85,4.20418482]
[1756734331533,39.6,199.86,199.85,4.20418482]
[1756734331727,41.747971,199.9,199.85,4.90418482]
[1756734331924,0.71,199.92,199.88,4.20418482]
[1756734332108,39.58,199.91,199.88,4.20418482]
[1756734332309,12.510757,199.92,199.9,4.20418482]
[1756734332505,0.03,199.96,199.91,4.20418482]
[1756734332709,0.03,199.96,199.84,17.51392768]
[1756734332710,52.090757,199.95,199.84,68.53394369]
[1756734333004,39.58,199.95,199.93,4.20418482]
[1756734333208,39.58,199.95,199.94,3.70866763]
[1756734333424,39.6,199.95,199.94,3.70866763]
[1756734333709,0.03,199.96,199.94,3.70866763]
[1756734333911,39.6,199.95,199.93,4.20418482]
[1756734334113,0.03,199.96,199.94,8.61355095]
[1756734334416,0.03,199.96,199.95,3.70936613]
[1756734334618,48.97734659,199.96,199.95,3.70936613]
[1756734335036,63.2429406,199.96,199.95,3.70936613]
[1756734335234,39.59559401,199.92,199.85,0.72]
[1756734335435,4.34634639,199.9,199.85,0.72]
[1756734335641,26.0,199.88,199.85,0.72]
[1756734335850,4.20418482,199.89,199.83,4.20418482]
[1756734335851,39.62,199.87,199.83,4.20418482]
[1756734336019,46.35880048,199.87,199.82,6.73880048]
[1756734336214,46.35880048,199.87,199.82,12.46323221]
[1756734336529,39.62,199.87,199.84,6.73880048]
[1756734336719,39.62,199.86,199.85,0.72]
[1756734336914,39.62,199.86,199.85,7.45880048]
[1756734337116,39.62,199.86,199.85,5.72375281]
[1756734337318,39.62,199.86,199.85,6.73880048]
[1756734337619,39.62,199.86,199.81,0.72]
[1756734337847,39.62,199.86,199.8,5.005005]
[1756734338013,39.62,199.86,199.83,6.73880048]
[1756734338212,39.62,199.86,199.82,6.73880048]
[1756734338519,39.62,199.86,199.82,7.45880048]
[1756734338820,39.62,199.86,199.82,0.72]
[1756734339143,46.35880048,199.86,199.79,0.84]
[1756734339440,6.73880048,199.85,199.8,6.73880048]
[1756734339649,44.62354356,199.86,199.8,7.45880048]
[1756734339855,6.73880048,199.85,199.79,0.12]
[1756734340031,6.73880048,199.85,199.79,6.85880048]
[1756734340843,44.62354356,199.86,199.79,0.12]
[1756734340844,6.73880048,199.82,199.79,0.12]
[1756734341026,26.0,199.8,199.79,0.12]
[1756734341442,39.64,199.8,199.79,7.57880048]
[1756734341939,6.7388,199.81,199.79,12.58405599]
[1756734342168,39.66,199.8,199.79,5.12525551]
[1756734342449,39.66,199.8,199.79,0.12]
[1756734343048,39.64,199.8,199.79,0.84]
[1756734343462,39.64,199.8,199.79,6.85880048]
[1756734343639,39.64,199.8,199.79,0.12]
[1756734344561,26.0,199.83,199.79,5.84515841]
[1756734344755,15.041741,199.84,199.8,7.45880048]
[1756734344927,26.0,199.85,199.8,7.45880048]
[1756734345127,39.64,199.84,199.8,6.73880048]
[1756734345345,38.515836,199.85,199.81,0.72]
[1756734345540,39.64,199.83,199.81,0.72]
[1756734345734,39.64,199.83,199.79,6.85880048]
[1756734345935,39.64,199.83,199.79,7.57880048]
[1756734346555,39.64,199.83,199.8,0.72]
[1756734346737,12.515836,199.85,199.82,6.73880048]
[1756734346930,39.62,199.84,199.82,6.73880048]
[1756734347347,39.62,199.84,199.79,0.12]
[1756734347549,39.62,199.84,199.79,7.57880048]
[1756734347956,39.62,199.84,199.82,6.73880048]
[1756734348443,39.62,199.84,199.81,6.73880048]
[1756734348676,0.14216157,199.84,199.79,6.85880048]
[1756734348831,65.72,199.83,199.79,0.12]
[1756734349033,6.73880048,199.81,199.79,0.12]
[1756734349334,51.48380548,199.8,199.79,0.12]
[1756734349853,44.745005,199.8,199.79,0.12]
[1756734350053,51.48380548,199.8,199.79,0.12]
[1756734350258,65.80156106,199.8,199.79,0.12]
[1756734351138,72.54036154,199.8,199.79,0.12]
[1756734351334,65.80156106,199.8,199.79,0.12]
[1756734352238,72.54036154,199.8,199.79,0.12]
[1756734353138,72.54036154,199.8,199.79,1e-08]
[1756734353139,87.57036154,199.8,199.79,1e-08]
[1756734353338,39.59559401,199.76,199.66,0.72]
[1756734353563,11.74631174,199.7,199.63,64.24000502]
[1756734353738,39.82,199.69,199.64,6.73880048]
[1756734354082,39.82,199.69,199.65,7.45880048]
[1756734354545,39.82,199.69,199.65,0.72]
[1756734354749,39.82,199.69,199.63,5.00926674]
[1756734354933,39.82,199.69,199.66,0.72]
[1756734355352,39.82,199.69,199.65,6.73880048]
[1756734355674,46.55880048,199.69,199.64,6.73880048]
[1756734355840,46.55880048,199.69,199.64,7.45880048]
[1756734356034,6.73880048,199.7,199.65,0.72]
[1756734356235,39.8,199.69,199.65,0.72]
[1756734356442,6.73880048,199.7,199.65,6.73880048]
[1756734356738,39.8,199.69,199.66,0.72]
[1756734356938,39.8,199.68,199.67,0.72]
[1756734357133,26.14216157,199.72,199.68,0.72]
[1756734357355,26.14216157,199.72,199.65,0.72]
[1756734357356,46.53880048,199.71,199.65,0.72]
[1756734357557,46.53880048,199.71,199.66,11.74728008]
[1756734357760,39.78,199.7,199.67,7.45880048]
[1756734358039,39.78,199.69,199.68,7.45880048]
[1756734358458,39.78,199.69,199.68,0.72]
[1756734359160,26.0,199.72,199.68,7.45880048]
[1756734359363,39.76,199.72,199.71,6.73880048]
[1756734359563,39.76,199.72,199.71,12.466061]
[1756734359749,39.76,199.72,199.71,7.45880048]
[1756734360148,39.76,199.72,199.63,26.0]
[1756734360366,39.76,199.72,199.69,6.73880048]
[1756734360552,39.76,199.72,199.68,7.45880048]
[1756734360739,39.76,199.72,199.69,0.72]
[1756734361184,39.76,199.72,199.68,6.73880048]
[1756734361340,39.76,199.72,199.68,7.45880048]
[1756734361777,51.50581868,199.72,199.65,0.72]
[1756734361955,51.50581868,199.72,199.67,6.73880048]
[1756734362153,51.50581868,199.72,199.67,0.72]
[1756734362351,39.76,199.72,199.67,7.45880048]
[1756734362573,39.76,199.72,199.68,6.73880048]
[1756734362746,39.76,199.72,199.67,0.72]
[1756734363147,51.50584389,199.72,199.64,0.72]
[1756734363362,6.73880048,199.7,199.65,6.73880048]
[1756734363564,51.50660508,199.69,199.64,0.72]
[1756734363772,7.31880048,199.68,199.63,6.73880048]
[1756734364145,0.58,199.67,199.56,2.61235673]
[1756734364348,0.14216157,199.65,199.57,0.72]
[1756734364563,65.82,199.66,199.57,0.72]
[1756734364841,65.82,199.66,199.61,6.73880048]
[1756734365062,72.55880048,199.66,199.61,6.73880048]
[1756734365384,6.73880048,199.64,199.58,6.73880048]
[1756734365677,6.73880048,199.64,199.53,0.71]
[1756734365678,6.73880048,199.59,199.53,0.71]
[1756734365883,39.94,199.58,199.53,0.71]
[1756734366360,39.94,199.58,199.51,0.71]
[1756734366569,39.94,199.58,199.53,6.73880048]
[1756734366742,39.94,199.58,199.54,0.71]
[1756734366943,39.94,199.58,199.49,5.0126636]
[1756734366944,39.94,199.58,199.51,0.71]
[1756734367355,26.0,199.55,199.45,0.71]
[1756734367559,40.12,199.54,199.47,6.73880048]
[1756734367763,14.31775558,199.58,199.45,0.71]
[1756734367764,15.065157,199.57,199.49,6.73880048]
[1756734367968,15.065157,199.57,199.52,6.73880048]
[1756734368143,40.22,199.56,199.53,0.71]
[1756734368353,133.9,199.6,199.55,6.73880048]
[1756734368546,40.28,199.59,199.56,0.71]
[1756734368768,0.58,199.62,199.56,6.73880048]
[1756734368944,15.059107,199.64,199.59,6.73880048]
[1756734369146,40.32,199.61,199.51,0.71]
[1756734369370,6.73880048,199.56,199.51,6.73880048]
[1756734369683,6.73880048,199.57,199.51,11.75092349]
[1756734369887,133.9,199.62,199.56,6.73880048]
[1756734370071,40.48,199.61,199.59,6.73880048]
[1756734370382,40.48,199.61,199.58,6.73880048]
[1756734370581,133.9,199.62,199.59,6.73880048]
[1756734370886,133.9,199.62,199.6,3.7084891]
[1756734371058,40.48,199.61,199.59,6.73880048]
[1756734371259,40.48,199.61,199.6,3.7074295]
[1756734371463,47.79880048,199.61,199.6,3.7074295]
[1756734371645,13.73775558,199.6,199.53,3.7074295]
[1756734371850,6.73880048,199.57,199.54,3.7074295]
[1756734372070,47.41880048,199.56,199.51,6.73880048]
[1756734372280,40.68,199.56,199.52,3.70825724]
[1756734372574,6.73880048,199.59,199.54,6.73880048]
[1756734372756,40.66,199.58,199.54,6.73880048]
[1756734372957,40.66,199.58,199.52,0.71]
[1756734373275,40.66,199.58,199.51,0.12]
[1756734373487,47.39880048,199.58,199.51,0.12]
[1756734373699,26.0,199.61,199.54,6.73880048]
[1756734373893,0.58,199.66,199.57,6.73880048]
[1756734374184,47.39880048,199.65,199.6,6.73880048]
[1756734374347,47.39880048,199.65,199.57,0.71]
[1756734374557,6.73880048,199.61,199.53,0.71]
[1756734374880,6.73880048,199.57,199.52,6.73880048]
[1756734375046,41.22,199.56,199.51,0.12]
[1756734375246,40.74,199.55,199.51,0.12]
[1756734375752,5.59156273,199.54,199.51,0.12]
[1756734375956,39.73775558,199.53,199.51,0.12]
[1756734376174,46.47655606,199.52,199.51,0.12]
[1756734376679,88.19655606,199.52,199.51,0.12]
[1756734377895,13.59559401,199.47,199.37,5.01558838]
[1756734378052,13.59559401,199.47,199.36,0.71]
[1756734378053,26.0,199.43,199.36,0.71]
[1756734378248,26.0,199.39,199.3,0.71]
[1756734378490,6.73880048,199.34,199.3,0.71]
[1756734378676,41.2,199.33,199.28,2.61616979]